[Event "The Elitserien 2024/25: round 1 - 3"]
[Site "Scandic Infra City, Kanalvagen 10, Upplands Vasby, Sweden"]
[Date "2024.10.04"]
[Round "1.1"]
[White "Sivuk, Vitaly"]
[Black "Hauge, Lars Oskar"]
[Result "1-0"]
[TimeControl "90 minutes for 40 moves + 30 minutes for the rest of the game + 30 seconds per move from move one."]
[WhiteTitle "GM"]
[BlackTitle "GM"]
[WhiteFideId "14116502"]
[BlackFideId "1509276"]
[WhiteElo "2526"]
[BlackElo "2484"]

1. d4 {[%clk 01:30:48]} {[%emt 00:00:11]} Nf6 {[%clk 01:30:30]} {[%emt
00:00:30]} 2. c4 {[%clk 01:31:06]} {[%emt 00:00:12]} e6 {[%clk 01:30:51]}
{[%emt 00:00:09]} 3. Nc3 {[%clk 01:31:22]} {[%emt 00:00:13]} d5 {[%clk
01:30:55]} {[%emt 00:00:27]} 4. cxd5 {[%clk 01:31:33]} {[%emt 00:00:20]} exd5
{[%clk 01:31:04]} {[%emt 00:00:21]} 5. Bg5 {[%clk 01:31:50]} {[%emt 00:00:11]}
Be7 {[%clk 01:28:18]} {[%emt 00:03:17]} 6. e3 {[%clk 01:32:04]} {[%emt
00:00:16]} O-O {[%clk 01:28:39]} {[%emt 00:00:10]} 7. Bd3 {[%clk 01:32:16]}
{[%emt 00:00:17]} Re8 {[%clk 01:26:02]} {[%emt 00:03:07]} 8. Nf3 {[%clk
01:30:11]} {[%emt 00:02:34]} h6 {[%clk 01:24:54]} {[%emt 00:01:40]} 9. Bf4
{[%clk 01:30:16]} {[%emt 00:00:25]} c5 {[%clk 01:23:13]} {[%emt 00:02:11]} 10.
dxc5 {[%clk 01:30:32]} {[%emt 00:00:14]} Bxc5 {[%clk 01:16:26]} {[%emt
00:07:16]} 11. O-O {[%clk 01:30:49]} {[%emt 00:00:13]} Nc6 {[%clk 01:12:42]}
{[%emt 00:04:15]} 12. h3 {[%clk 01:27:11]} {[%emt 00:04:06]} d4 {[%clk
01:07:54]} {[%emt 00:05:19]} 13. Na4 {[%clk 01:23:30]} {[%emt 00:04:09]} Bd6
{[%clk 01:07:21]} {[%emt 00:01:04]} 14. Bxd6 {[%clk 01:19:54]} {[%emt
00:04:06]} Qxd6 {[%clk 01:07:41]} {[%emt 00:00:11]} 15. Bb5 {[%clk 01:17:34]}
{[%emt 00:02:49]} Bd7 {[%clk 01:02:30]} {[%emt 00:05:41]} 16. Rc1 {[%clk
00:59:07]} {[%emt 00:18:57]} Qb4 {[%clk 00:47:04]} {[%emt 00:15:56]} 17. Nxd4
{[%clk 00:57:23]} {[%emt 00:02:13]} Nxd4 {[%clk 00:40:29]} {[%emt 00:07:06]} 18.
Bxd7 {[%clk 00:57:44]} {[%emt 00:00:09]} Red8 {[%clk 00:23:11]} {[%emt
00:17:49]} 19. a3 {[%clk 00:54:49]} {[%emt 00:03:24]} Qe7 {[%clk 00:22:23]}
{[%emt 00:01:18]} 20. Qxd4 {[%clk 00:53:03]} {[%emt 00:02:16]} Rxd7 {[%clk
00:22:31]} {[%emt 00:00:23]} 21. Qc5 {[%clk 00:51:25]} {[%emt 00:02:06]} Qxc5
{[%clk 00:19:34]} {[%emt 00:03:29]} 22. Nxc5 {[%clk 00:46:47]} {[%emt
00:05:07]} Rd2 {[%clk 00:19:33]} {[%emt 00:00:32]} 23. Rb1 {[%clk 00:46:51]}
{[%emt 00:00:26]} Rc8 {[%clk 00:14:11]} {[%emt 00:05:52]} 24. Nb3 {[%clk
00:46:44]} {[%emt 00:00:36]} Rd3 {[%clk 00:13:54]} {[%emt 00:00:48]} 25. Nd4
{[%clk 00:46:47]} {[%emt 00:00:25]} Ne4 {[%clk 00:09:49]} {[%emt 00:04:37]} 26.
Rfd1 {[%clk 00:45:04]} {[%emt 00:02:12]} Rxd1+ {[%clk 00:06:54]} {[%emt
00:03:26]} 27. Rxd1 {[%clk 00:45:26]} {[%emt 00:00:07]} a6 {[%clk 00:05:22]}
{[%emt 00:02:03]} 28. Kf1 {[%clk 00:43:16]} {[%emt 00:02:39]} g6 {[%clk
00:05:31]} {[%emt 00:00:22]} 29. g4 {[%clk 00:42:51]} {[%emt 00:00:53]} Kf8
{[%clk 00:05:11]} {[%emt 00:00:52]} 30. Ke2 {[%clk 00:43:07]} {[%emt 00:00:11]}
Ke7 {[%clk 00:05:14]} {[%emt 00:00:29]} 31. h4 {[%clk 00:43:20]} {[%emt
00:00:16]} Rc5 {[%clk 00:04:15]} {[%emt 00:01:30]} 32. f3 {[%clk 00:40:33]}
{[%emt 00:03:16]} Nd6 {[%clk 00:04:29]} {[%emt 00:00:17]} 33. a4 {[%clk
00:38:26]} {[%emt 00:02:37]} Rc7 {[%clk 00:00:34]} {[%emt 00:04:25]} 34. b3
{[%clk 00:34:12]} {[%emt 00:04:44]} Rc5 {[%clk 00:00:37]} {[%emt 00:00:27]} 35.
Kd2 {[%clk 00:32:54]} {[%emt 00:01:47]} h5 {[%clk 00:01:01]} {[%emt 00:00:08]}
36. g5 {[%clk 00:27:51]} {[%emt 00:05:32]} Rd5 {[%clk 00:00:39]} {[%emt
00:00:53]} 37. Ke2 {[%clk 00:26:26]} {[%emt 00:01:53]} Rc5 {[%clk 00:00:57]}
{[%emt 00:00:14]} 38. e4 {[%clk 00:25:41]} {[%emt 00:01:14]} b5 {[%clk
00:00:56]} {[%emt 00:00:31]} 39. Ra1 {[%clk 00:17:44]} {[%emt 00:08:26]} a5
{[%clk 00:00:32]} {[%emt 00:00:55]} 40. Kd3 {[%clk 00:17:03]} {[%emt 00:01:10]}
b4 {[%clk 00:00:32]} {[%emt 00:00:32]} 41. Ne2 {[%clk 00:16:14]} {[%emt
00:01:17]} Nb7 {[%clk 00:26:09]} {[%emt 00:04:54]} 42. Rc1 {[%clk 00:41:56]}
{[%emt 00:04:47]} Kd6 {[%clk 00:25:11]} {[%emt 00:01:29]} 43. Rxc5 {[%clk
00:39:24]} {[%emt 00:03:02]} Kxc5 {[%clk 00:25:35]} {[%emt 00:00:06]} 44. Nf4
{[%clk 00:38:41]} {[%emt 00:01:12]} Nd8 {[%clk 00:25:28]} {[%emt 00:00:38]} 45.
Ke3 {[%clk 00:38:03]} {[%emt 00:01:07]} Nc6 {[%clk 00:25:36]} {[%emt 00:00:23]}
46. Nd3+ {[%clk 00:38:21]} {[%emt 00:00:11]} Kd6 {[%clk 00:26:01]} {[%emt
00:00:06]} 47. f4 {[%clk 00:37:14]} {[%emt 00:01:37]} Ke6 {[%clk 00:26:09]}
{[%emt 00:00:22]} 48. Nb2 {[%clk 00:36:47]} {[%emt 00:00:57]} Kd6 {[%clk
00:25:04]} {[%emt 00:01:35]} 49. Nc4+ {[%clk 00:36:10]} {[%emt 00:01:06]} Kc5
{[%clk 00:25:28]} {[%emt 00:00:07]} 50. Kd3 {[%clk 00:32:32]} {[%emt 00:04:08]}
Nd4 {[%clk 00:25:39]} {[%emt 00:00:19]} 51. Nxa5 {[%clk 00:32:45]} {[%emt
00:00:17]} Nf3 {[%clk 00:26:05]} {[%emt 00:00:05]} 52. Ke3 {[%clk 00:31:26]}
{[%emt 00:01:48]} Nxh4 {[%clk 00:25:47]} {[%emt 00:00:49]} 53. Kf2 {[%clk
00:31:48]} {[%emt 00:00:07]} 1-0

[Event "The Elitserien 2024/25: round 1 - 3"]
[Site "Scandic Infra City, Kanalvagen 10, Upplands Vasby, Sweden"]
[Date "2024.10.04"]
[Round "1.2"]
[White "Lokander, Martin"]
[Black "Peng, Li Min"]
[Result "1/2-1/2"]
[TimeControl "90 minutes for 40 moves + 30 minutes for the rest of the game + 30 seconds per move from move one."]
[WhiteTitle "IM"]
[BlackTitle "GM"]
[WhiteFideId "1709569"]
[BlackFideId "14112620"]
[WhiteElo "2469"]
[BlackElo "2514"]

1. d4 {[%clk 01:30:52]} {[%emt 00:00:07]} Nf6 {[%clk 01:26:26]} {[%emt
00:04:35]} 2. c4 {[%clk 01:30:14]} {[%emt 00:01:08]} e6 {[%clk 01:26:49]}
{[%emt 00:00:07]} 3. Nf3 {[%clk 01:30:14]} {[%emt 00:00:30]} d5 {[%clk
01:27:09]} {[%emt 00:00:09]} 4. Nc3 {[%clk 01:30:20]} {[%emt 00:00:25]} c5
{[%clk 01:27:33]} {[%emt 00:00:06]} 5. cxd5 {[%clk 01:30:24]} {[%emt 00:00:26]}
cxd4 {[%clk 01:27:56]} {[%emt 00:00:06]} 6. Qxd4 {[%clk 01:30:00]} {[%emt
00:00:54]} exd5 {[%clk 01:28:20]} {[%emt 00:00:08]} 7. e4 {[%clk 01:28:46]}
{[%emt 00:01:43]} dxe4 {[%clk 01:28:43]} {[%emt 00:00:07]} 8. Qxd8+ {[%clk
01:29:12]} {[%emt 00:00:03]} Kxd8 {[%clk 01:29:05]} {[%emt 00:00:08]} 9. Ng5
{[%clk 01:29:34]} {[%emt 00:00:08]} Be6 {[%clk 01:29:28]} {[%emt 00:00:07]} 10.
Nxe6+ {[%clk 01:29:49]} {[%emt 00:00:16]} fxe6 {[%clk 01:29:52]} {[%emt
00:00:06]} 11. Bg5 {[%clk 01:30:13]} {[%emt 00:00:06]} h6 {[%clk 01:30:15]}
{[%emt 00:00:06]} 12. O-O-O+ {[%clk 01:30:30]} {[%emt 00:00:13]} Ke7 {[%clk
01:30:39]} {[%emt 00:00:05]} 13. Bxf6+ {[%clk 01:30:56]} {[%emt 00:00:04]} gxf6
{[%clk 01:31:03]} {[%emt 00:00:07]} 14. Nxe4 {[%clk 01:31:22]} {[%emt
00:00:04]} Bg7 {[%clk 01:31:29]} {[%emt 00:00:04]} 1/2-1/2

[Event "The Elitserien 2024/25: round 1 - 3"]
[Site "Scandic Infra City, Kanalvagen 10, Upplands Vasby, Sweden"]
[Date "2024.10.04"]
[Round "1.3"]
[White "Galperin, Platon"]
[Black "Georgiadis, Nico"]
[Result "0-1"]
[TimeControl "90 minutes for 40 moves + 30 minutes for the rest of the game + 30 seconds per move from move one."]
[WhiteTitle "GM"]
[BlackTitle "GM"]
[WhiteFideId "14165414"]
[BlackFideId "1300113"]
[WhiteElo "2518"]
[BlackElo "2510"]

1. e4 {[%clk 01:28:31]} {[%emt 00:02:29]} c5 {[%clk 01:30:45]} {[%emt
00:00:14]} 2. Nf3 {[%clk 01:28:56]} {[%emt 00:00:06]} d6 {[%clk 01:31:00]}
{[%emt 00:00:15]} 3. Nc3 {[%clk 01:28:52]} {[%emt 00:00:34]} Nf6 {[%clk
01:29:46]} {[%emt 00:01:43]} 4. Bb5+ {[%clk 01:29:17]} {[%emt 00:00:06]} Bd7
{[%clk 01:24:46]} {[%emt 00:05:30]} 5. Qe2 {[%clk 01:29:36]} {[%emt 00:00:11]}
e5 {[%clk 01:19:42]} {[%emt 00:05:34]} 6. a4 {[%clk 01:19:54]} {[%emt
00:10:12]} Be7 {[%clk 01:19:25]} {[%emt 00:00:47]} 7. d3 {[%clk 01:19:21]}
{[%emt 00:01:03]} h6 {[%clk 01:14:08]} {[%emt 00:05:48]} 8. Nd2 {[%clk
01:15:02]} {[%emt 00:04:48]} O-O {[%clk 01:12:46]} {[%emt 00:01:52]} 9. Bxd7
{[%clk 01:10:58]} {[%emt 00:04:34]} Qxd7 {[%clk 01:11:52]} {[%emt 00:01:24]} 10.
Nc4 {[%clk 01:11:14]} {[%emt 00:00:14]} Nc6 {[%clk 01:11:59]} {[%emt 00:00:23]}
11. Ne3 {[%clk 01:10:16]} {[%emt 00:01:28]} Bd8 {[%clk 00:57:51]} {[%emt
00:14:37]} 12. g4 {[%clk 00:56:19]} {[%emt 00:14:29]} Ba5 {[%clk 00:41:54]}
{[%emt 00:16:26]} 13. h4 {[%clk 00:54:33]} {[%emt 00:02:16]} Nd4 {[%clk
00:38:25]} {[%emt 00:03:59]} 14. Qd1 {[%clk 00:54:55]} {[%emt 00:00:07]} h5
{[%clk 00:37:43]} {[%emt 00:01:13]} 15. gxh5 {[%clk 00:44:52]} {[%emt
00:10:33]} d5 {[%clk 00:37:39]} {[%emt 00:00:34]} 16. Kf1 {[%clk 00:42:03]}
{[%emt 00:03:19]} Bxc3 {[%clk 00:36:36]} {[%emt 00:01:33]} 17. bxc3 {[%clk
00:42:25]} {[%emt 00:00:08]} Ne6 {[%clk 00:34:28]} {[%emt 00:02:38]} 18. Qf3
{[%clk 00:22:49]} {[%emt 00:20:07]} dxe4 {[%clk 00:28:00]} {[%emt 00:06:57]} 19.
dxe4 {[%clk 00:23:13]} {[%emt 00:00:05]} Nf4 {[%clk 00:27:50]} {[%emt
00:00:41]} 20. Nf5 {[%clk 00:19:09]} {[%emt 00:04:34]} N4xh5 {[%clk 00:18:58]}
{[%emt 00:09:22]} 21. Bg5 {[%clk 00:12:47]} {[%emt 00:06:52]} g6 {[%clk
00:13:32]} {[%emt 00:05:57]} 22. Rg1 {[%clk 00:08:30]} {[%emt 00:04:47]} Qe6
{[%clk 00:10:57]} {[%emt 00:03:05]} 23. Bxf6 {[%clk 00:07:17]} {[%emt
00:01:43]} Nxf6 {[%clk 00:11:21]} {[%emt 00:00:06]} 24. Ne3 {[%clk 00:07:09]}
{[%emt 00:00:37]} Kh7 {[%clk 00:11:24]} {[%emt 00:00:27]} 25. Rg5 {[%clk
00:02:30]} {[%emt 00:05:09]} Rad8 {[%clk 00:10:49]} {[%emt 00:01:05]} 26. Kg2
{[%clk 00:01:27]} {[%emt 00:01:32]} Nh5 {[%clk 00:09:08]} {[%emt 00:02:11]} 27.
Rh1 {[%clk 00:01:00]} {[%emt 00:00:58]} Nf4+ {[%clk 00:08:31]} {[%emt
00:01:07]} 28. Kg3 {[%clk 00:01:28]} {[%emt 00:00:02]} f6 {[%clk 00:07:14]}
{[%emt 00:01:47]} 29. Rg4 {[%clk 00:01:58]} Rd2 {[%clk 00:06:28]} {[%emt
00:01:15]} 30. Kh2 {[%clk 00:01:01]} {[%emt 00:01:26]} Qc6 {[%clk 00:04:16]}
{[%emt 00:02:44]} 31. Rhg1 {[%clk 00:00:57]} {[%emt 00:00:33]} f5 {[%clk
00:03:01]} {[%emt 00:01:45]} 32. Rxg6 {[%clk 00:01:17]} {[%emt 00:00:10]} Nxg6
{[%clk 00:03:26]} {[%emt 00:00:05]} 33. Qh5+ {[%clk 00:01:13]} {[%emt
00:00:35]} Kg7 {[%clk 00:03:48]} {[%emt 00:00:07]} 34. Nxf5+ {[%clk 00:00:59]}
{[%emt 00:00:44]} Rxf5 {[%clk 00:04:14]} {[%emt 00:00:04]} 35. exf5 {[%emt
00:00:58]} Rxf2+ {[%clk 00:04:40]} {[%emt 00:00:03]} 36. Kg3 {[%clk 00:00:57]}
{[%emt 00:00:06]} Rg2+ {[%clk 00:05:03]} {[%emt 00:00:06]} 0-1

[Event "The Elitserien 2024/25: round 1 - 3"]
[Site "Scandic Infra City, Kanalvagen 10, Upplands Vasby, Sweden"]
[Date "2024.10.04"]
[Round "1.4"]
[White "Westerberg, Jonathan"]
[Black "Miezis, Normunds"]
[Result "0-1"]
[TimeControl "90 minutes for 40 moves + 30 minutes for the rest of the game + 30 seconds per move from move one."]
[WhiteTitle "GM"]
[BlackTitle "GM"]
[WhiteFideId "1701754"]
[BlackFideId "11600136"]
[WhiteElo "2469"]
[BlackElo "2417"]

1. e4 {[%clk 01:30:56]} {[%emt 00:00:03]} c5 {[%clk 01:30:08]} {[%emt
00:00:52]} 2. Nf3 {[%clk 01:31:19]} {[%emt 00:00:07]} e6 {[%clk 01:30:23]}
{[%emt 00:00:15]} 3. c3 {[%clk 01:31:42]} {[%emt 00:00:07]} d5 {[%clk
01:29:46]} {[%emt 00:01:06]} 4. exd5 {[%clk 01:32:07]} {[%emt 00:00:06]} exd5
{[%clk 01:29:17]} {[%emt 00:00:59]} 5. Bb5+ {[%clk 01:32:31]} {[%emt 00:00:06]}
Nc6 {[%clk 01:27:55]} {[%emt 00:01:52]} 6. Qe2+ {[%clk 01:32:55]} {[%emt
00:00:07]} Be6 {[%clk 01:25:31]} {[%emt 00:02:53]} 7. d4 {[%clk 01:29:11]}
{[%emt 00:04:13]} Nf6 {[%clk 01:20:47]} {[%emt 00:05:15]} 8. O-O {[%clk
01:27:13]} {[%emt 00:02:28]} Bd6 {[%clk 01:12:21]} {[%emt 00:08:56]} 9. Bg5
{[%clk 01:03:38]} {[%emt 00:24:05]} O-O {[%clk 01:03:03]} {[%emt 00:09:49]} 10.
Nbd2 {[%clk 01:00:51]} {[%emt 00:03:17]} cxd4 {[%clk 00:43:35]} {[%emt
00:19:57]} 11. cxd4 {[%clk 00:56:28]} {[%emt 00:04:54]} Bg4 {[%clk 00:35:07]}
{[%emt 00:08:57]} 12. Bxc6 {[%clk 00:52:58]} {[%emt 00:04:00]} bxc6 {[%clk
00:35:28]} {[%emt 00:00:09]} 13. Qd3 {[%clk 00:48:23]} {[%emt 00:05:04]} h6
{[%clk 00:32:05]} {[%emt 00:03:55]} 14. Bh4 {[%clk 00:48:01]} {[%emt 00:00:52]}
Re8 {[%clk 00:29:44]} {[%emt 00:02:50]} 15. Rae1 {[%clk 00:47:02]} {[%emt
00:01:29]} Rxe1 {[%clk 00:23:56]} {[%emt 00:06:18]} 16. Rxe1 {[%clk 00:47:23]}
{[%emt 00:00:09]} Bxf3 {[%clk 00:23:24]} {[%emt 00:01:03]} 17. Nxf3 {[%clk
00:44:51]} {[%emt 00:03:01]} g5 {[%clk 00:14:13]} {[%emt 00:09:41]} 18. Bg3
{[%clk 00:41:19]} {[%emt 00:04:03]} Bxg3 {[%clk 00:08:41]} {[%emt 00:06:01]} 19.
hxg3 {[%clk 00:40:02]} {[%emt 00:01:47]} Ne4 {[%clk 00:08:18]} {[%emt
00:00:53]} 20. Re2 {[%clk 00:37:12]} {[%emt 00:03:19]} Qd6 {[%clk 00:07:57]}
{[%emt 00:00:51]} 21. Nh2 {[%clk 00:31:31]} {[%emt 00:06:12]} Rb8 {[%clk
00:06:53]} {[%emt 00:01:34]} 22. a3 {[%clk 00:28:34]} {[%emt 00:03:28]} a5
{[%clk 00:04:57]} {[%emt 00:02:26]} 23. Nf1 {[%clk 00:28:58]} {[%emt 00:00:05]}
Qf6 {[%clk 00:04:47]} {[%emt 00:00:41]} 24. g4 {[%clk 00:23:20]} {[%emt
00:06:08]} a4 {[%clk 00:04:36]} {[%emt 00:00:41]} 25. f3 {[%clk 00:21:04]}
{[%emt 00:02:46]} Rb3 {[%clk 00:03:47]} {[%emt 00:01:19]} 26. Qd1 {[%clk
00:20:35]} {[%emt 00:00:57]} Nd6 {[%clk 00:04:08]} {[%emt 00:00:09]} 27. Ng3
{[%clk 00:18:52]} {[%emt 00:02:14]} Kf8 {[%clk 00:02:54]} {[%emt 00:01:44]} 28.
Nh5 {[%clk 00:16:35]} {[%emt 00:02:48]} Qg6 {[%clk 00:03:17]} {[%emt 00:00:07]}
29. Qe1 {[%clk 00:16:15]} {[%emt 00:00:47]} Qd3 {[%clk 00:03:07]} {[%emt
00:00:42]} 30. Kh2 {[%clk 00:16:08]} {[%emt 00:00:38]} Qxd4 {[%clk 00:02:38]}
{[%emt 00:00:58]} 31. Qa5 {[%clk 00:16:08]} {[%emt 00:00:22]} Qb6 {[%clk
00:02:34]} {[%emt 00:00:42]} 32. Qa8+ {[%clk 00:12:11]} {[%emt 00:04:26]} Qb8
{[%clk 00:03:02]} {[%emt 00:00:04]} 33. Qxc6 {[%clk 00:11:59]} {[%emt
00:00:41]} d4 {[%clk 00:03:20]} {[%emt 00:00:13]} 34. Kh3 {[%clk 00:09:04]}
{[%emt 00:03:24]} d3 {[%clk 00:03:35]} {[%emt 00:00:15]} 35. Rd2 {[%clk
00:08:37]} {[%emt 00:00:57]} Ke7 {[%clk 00:03:26]} {[%emt 00:00:39]} 36. Qd5
{[%clk 00:05:32]} {[%emt 00:03:36]} Qb5 {[%clk 00:03:20]} {[%emt 00:00:35]} 37.
Qd4 {[%clk 00:05:40]} {[%emt 00:00:21]} Qc4 {[%clk 00:03:11]} {[%emt 00:00:40]}
38. Qe3+ {[%clk 00:04:23]} {[%emt 00:01:47]} Qe6 {[%clk 00:02:52]} {[%emt
00:00:49]} 39. Qa7+ {[%clk 00:04:36]} {[%emt 00:00:16]} Rb7 {[%clk 00:02:10]}
{[%emt 00:01:13]} 40. Qxa4 {[%clk 00:03:22]} {[%emt 00:01:44]} Qe1 {[%clk
00:01:58]} {[%emt 00:00:43]} 41. Qd1 {[%clk 00:18:25]} {[%emt 00:15:26]} Qh4#
{[%clk 00:32:09]} {[%emt 00:00:19]} 0-1